bitfinex/quotes_ETHUSD_20241024
["timestamp","ask_amount","ask_price","bid_price","bid_amount"]
[1729791210950,3.97228,2517.5,2517.1,0.9148443]
[1729791212870,3.97204,2517.6,2517.1,4.8875943]
[1729791213074,3.97227,2517.5,2517.1,4.8875943]
[1729791213771,3.97227,2517.5,2517.1,0.9148443]
[1729791214074,3.97204,2517.6,2517.1,4.8875943]
[1729791214377,3.97221,2517.5,2517.1,4.8875943]
[1729791215465,7.9445,2517.5,2517.1,4.8875943]
[1729791215666,3.97221,2517.5,2517.1,4.8875943]
[1729791215976,3.97206,2517.6,2517.1,4.8875543]
[1729791216393,3.97206,2517.6,2517.2,4.54981046]
[1729791216695,10.0,2518.0,2517.6,3.97192]
[1729791216846,10.0,2518.0,2517.4,3.33140266]
[1729791216847,10.0,2518.0,2517.8,3.97171]
[1729791217451,10.0,2518.0,2517.7,8.76666]
[1729791217652,10.0,2518.0,2517.8,3.97171]
[1729791218463,10.0,2518.0,2517.7,0.8231]
[1729791218776,10.0,2518.0,2517.8,3.97164]
[1729791219163,10.0,2518.0,2517.7,4.79495]
[1729791220154,10.0,2518.0,2517.7,0.8231]
[1729791220388,13.97146,2518.0,2517.7,0.8231]
[1729791220895,10.0,2518.0,2517.7,0.8231]
[1729791221050,10.0,2518.0,2517.9,3.97156]
[1729791223154,10.0,2518.0,2517.8,3.97169]
[1729791225684,10.0,2518.0,2517.7,5.28241623]
[1729791225901,10.0,2518.0,2517.8,3.97171]
[1729791227330,10.0,2518.0,2517.8,8.02269635]
[1729791227502,10.0,2518.0,2517.8,3.97163]
[1729791227703,10.0,2518.0,2517.7,5.28232623]
[1729791227870,10.0,2518.0,2517.7,1.31054623]
[1729791228075,10.0,2518.0,2517.7,0.8231]
[1729791228675,10.0,2518.0,2517.7,4.79496]
[1729791228974,10.0,2518.0,2517.7,0.8231]
[1729791229170,13.97142,2518.0,2517.7,0.8231]
[1729791229587,10.0,2518.0,2517.7,0.8231]
[1729791231595,13.97142,2518.0,2517.7,0.8231]
[1729791231902,13.97141,2518.0,2517.7,0.8231]
[1729791232608,13.97141,2518.0,2517.5,4.75226]
[1729791232917,3.97165,2517.9,2517.5,4.75226]
[1729791233119,3.97165,2517.9,2517.5,5.624736]
[1729791234422,13.97141,2518.0,2517.6,3.97202]
[1729791234592,13.97141,2518.0,2517.6,4.05145297]
[1729791235125,13.97141,2518.0,2517.6,3.97202]
[1729791235296,17.94295,2518.0,2517.6,3.97202]
[1729791235699,17.94295,2518.0,2517.7,0.8097]
[1729791235700,13.97141,2518.0,2517.7,0.8097]
[1729791236388,17.94292,2518.0,2517.7,0.8097]
[1729791236587,13.97141,2518.0,2517.7,0.8097]
[1729791237500,3.97167,2517.9,2517.5,4.844646]
[1729791237706,3.97167,2517.9,2517.5,5.638446]
[1729791239398,3.97167,2517.9,2517.6,1.02911291]
[1729791239628,3.97167,2517.9,2517.5,4.76597]
[1729791239838,3.97164,2517.9,2517.5,4.76597]
[1729791240125,13.97142,2518.0,2517.6,3.97201]
[1729791240508,13.97142,2518.0,2517.7,1.03019806]
[1729791240685,3.9716,2517.9,2517.6,0.82420038]
[1729791240888,3.9716,2517.9,2517.7,1.03021595]
[1729791241130,3.9716,2517.9,2517.5,6.27279748]
[1729791241336,3.9716,2517.9,2517.6,1.85445732]
[1729791241504,3.9716,2517.9,2517.5,5.4485971]
[1729791241505,3.97172,2517.8,2517.5,1.61800038]
[1729791241709,7.94327,2517.9,2517.6,1.03048207]
[1729791242029,7.94327,2517.9,2517.5,5.59019038]
[1729791242200,7.94327,2517.9,2517.6,1.03048776]
[1729791242395,0.7661,2517.8,2517.5,0.82420038]
[1729791242610,3.972,2517.7,2517.4,0.82420038]
[1729791242831,3.972,2517.7,2517.5,1.03081829]
[1729791243034,3.972,2517.7,2517.4,0.82420038]
[1729791243238,3.972,2517.7,2517.5,1.03081174]
[1729791243437,3.972,2517.7,2517.3,5.55709038]
[1729791243731,0.7661,2517.8,2517.4,5.82766844]
[1729791243933,13.9715,2518.0,2517.5,5.00320806]
[1729791243934,10.7661,2518.0,2517.5,5.00320806]
[1729791244146,10.7661,2518.0,2517.5,3.97207]
[1729791244432,14.73756,2518.0,2517.6,3.972]
[1729791244600,13.97146,2518.0,2517.6,3.972]
[1729791244802,10.0,2518.0,2517.7,3.97186]
[1729791244996,10.0,2518.0,2517.8,3.97167]
[1729791245738,10.0,2518.0,2517.9,0.8231]
[1729791247546,10.0,2518.0,2517.9,4.79466]
[1729791247932,10.0,2518.0,2517.9,0.8231]
[1729791248242,10.0,2518.0,2517.9,4.79466]
[1729791248449,10.0,2518.0,2517.9,6.01237092]
[1729791248654,10.0,2518.0,2517.9,9.34377358]
[1729791249752,10.0,2518.0,2517.9,6.01237092]
[1729791253029,10.0,2518.0,2517.9,9.34377358]
[1729791253414,10.0,2518.0,2517.9,5.37221358]
[1729791254050,10.0,2518.0,2517.7,4.13800266]
[1729791255142,10.0,2518.0,2517.7,8.10985266]
[1729791256072,10.0,2518.0,2517.9,3.33140266]
[1729791262484,13.9714,2518.0,2517.9,3.33140266]
[1729791262658,13.9714,2518.0,2517.7,4.13800266]
[1729791262979,11.794276,2518.0,2517.5,0.82420038]
[1729791263177,3.97173,2517.8,2517.5,3.33140266]
[1729791263746,3.97203,2517.6,2517.5,3.33140266]
[1729791263943,4.7386,2517.7,2517.3,7.30389266]
[1729791264181,4.7386,2517.7,2517.3,8.71360502]
[1729791265566,0.7667,2517.7,2517.3,12.68604502]
[1729791265760,4.73869,2517.7,2517.3,4.74111502]
[1729791266272,0.7667,2517.7,2517.3,8.71359502]
[1729791266586,4.73863,2517.7,2517.3,8.71359502]
[1729791267353,0.7667,2517.7,2517.3,3.33140266]
[1729791267552,0.7667,2517.7,2517.2,1.58420038]
[1729791267553,0.7667,2517.7,2517.2,3.97261]
[1729791267784,3.97216,2517.6,2517.1,8.20783299]
[1729791267952,3.97216,2517.6,2517.1,7.30419266]
[1729791268301,3.97216,2517.6,2517.2,3.97266]
[1729791269669,10.7949,2518.0,2517.7,3.97183]
[1729791269993,14.76637,2518.0,2517.6,3.97189]
[1729791270294,10.7949,2518.0,2517.6,3.97189]
[1729791270494,10.7949,2518.0,2517.8,3.97163]
[1729791270495,10.0,2518.0,2517.8,3.97163]
[1729791271163,10.0,2518.0,2517.9,3.97156]
[1729791271370,10.0,2518.0,2517.9,7.30296266]
[1729791273655,10.0,2518.0,2517.9,3.33140266]
[1729791273991,10.0,2518.0,2517.8,3.97163]
[1729791274569,10.0,2518.0,2517.7,0.7801]
[1729791274768,10.0,2518.0,2517.7,5.6426993]
[1729791274969,10.0,2518.0,2517.7,4.8625993]
[1729791275289,10.0,2518.0,2517.7,8.19400196]
[1729791275701,13.97142,2518.0,2517.7,0.8907593]
[1729791275854,10.0,2518.0,2517.6,3.97202]
[1729791276054,13.97143,2518.0,2517.6,3.97202]
[1729791280399,13.97143,2518.0,2517.5,7.30344266]
[1729791280893,3.97161,2517.9,2517.5,7.30344266]
[1729791281492,3.97173,2517.8,2517.5,3.33140266]
[1729791281701,0.8149,2517.7,2517.4,3.97233]
[1729791281995,0.8149,2517.7,2517.3,7.30378266]
[1729791281996,4.78684,2517.7,2517.3,3.97238]
[1729791283190,3.97205,2517.6,2517.2,3.97265]
[1729791283373,3.97233,2517.5,2517.1,7.30420266]
[1729791283572,3.97233,2517.5,2517.1,7.30421266]
[1729791284475,3.97233,2517.5,2517.1,3.41085069]
[1729791284671,3.97233,2517.5,2517.1,7.38359069]
[1729791285290,3.97233,2517.5,2517.1,8.6016648]
[1729791285489,3.97233,2517.5,2517.1,8.52221677]
[1729791285675,4.78686,2517.7,2517.3,3.33140266]
[1729791285878,4.78686,2517.7,2517.3,7.30388266]
[1729791286376,4.78686,2517.7,2517.3,3.33140266]
[1729791286678,3.97204,2517.6,2517.3,3.33140266]
[1729791290601,3.97204,2517.6,2517.2,8.76233]
[1729791290602,7.9442,2517.6,2517.2,3.97256]
[1729791290907,3.97204,2517.6,2517.1,7.30420266]
[1729791291243,4.78678,2517.7,2517.3,7.30381266]
[1729791291379,3.97206,2517.6,2517.3,3.33140266]
[1729791291581,3.97229,2517.5,2517.1,8.59406296]
[1729791292418,3.97206,2517.6,2517.2,3.97265]
[1729791296031,0.8149,2517.7,2517.1,3.33140266]
[1729791296184,3.97204,2517.6,2517.2,3.9726]
[1729791298214,3.97204,2517.6,2517.2,7.9452]
[1729791298433,3.97204,2517.6,2517.2,3.9726]
[1729791298946,4.78691,2517.7,2517.2,3.9726]
[1729791299107,4.78691,2517.7,2517.3,3.97249]
[1729791299508,4.78691,2517.7,2517.3,3.97244]
[1729791299703,4.78691,2517.7,2517.3,7.94486]
[1729791300119,4.78691,2517.7,2517.3,11.27626266]
[1729791301106,11.18547709,2518.0,2517.5,3.33140266]
[1729791301308,3.97179,2517.8,2517.4,4.78213]
[1729791301745,3.97192,2517.7,2517.4,0.8098]
[1729791301909,3.97192,2517.7,2517.3,7.30387266]
[1729791302742,3.97192,2517.7,2517.2,4.8018]
[1729791302942,3.97179,2517.8,2517.4,3.97226]
[1729791303247,5.98704947,2517.8,2517.4,3.97226]
[1729791303413,3.97196,2517.7,2517.3,3.97241]
[1729791304428,5.98704947,2517.8,2517.5,1.63668388]
[1729791304645,5.98704947,2517.8,2517.6,1.63668388]
[1729791304846,3.97187,2517.7,2517.5,1.63668388]
[1729791305019,4.96776195,2517.7,2517.5,1.63668388]
[1729791305737,5.98704947,2517.8,2517.6,1.63668388]
[1729791305909,5.98704947,2517.8,2517.3,4.05185071]
[1729791305910,3.97179,2517.8,2517.7,1.63668388]
[1729791306110,3.97179,2517.8,2517.3,3.97241]
[1729791306111,3.97179,2517.8,2517.6,1.63668388]
[1729791306632,3.97179,2517.8,2517.7,1.63668388]
[1729791307329,3.97179,2517.8,2517.6,1.63668388]
[1729791308554,3.97179,2517.8,2517.7,1.63668388]
[1729791309345,14.74216,2518.0,2517.7,1.63668388]
[1729791309560,14.74216,2518.0,2517.9,1.63668388]
[1729791309561,10.0,2518.0,2517.9,1.63668388]
[1729791309725,13.9714,2518.0,2517.9,1.63668388]
[1729791311819,10.0,2518.0,2517.9,1.63668388]
[1729791312025,10.0,2518.0,2517.9,5.60824388]
[1729791312222,10.0,2518.0,2517.9,1.63668388]
[1729791312418,10.0,2518.0,2517.9,2.42988388]
[1729791313052,10.0,2518.0,2517.9,6.40144388]
[1729791313765,10.0,2518.0,2517.9,2.42988388]
[1729791314460,10.0,2518.0,2517.9,7.04954393]
[1729791314762,10.0,2518.0,2517.9,7.12896876]
[1729791314938,10.0,2518.0,2517.9,8.16142858]
[1729791315254,10.0,2518.0,2517.9,8.08200375]
[1729791316122,10.0,2518.0,2517.9,7.04954393]
[1729791316324,10.0,2518.0,2517.9,7.12896642]
[1729791316526,10.0,2518.0,2517.9,8.16090506]
[1729791316838,10.0,2518.0,2517.9,7.04954393]
[1729791317208,10.0,2518.0,2517.9,7.12896643]
[1729791317475,10.0,2518.0,2517.9,11.7107159]
[1729791317658,10.0,2518.0,2517.9,11.6312934]
[1729791317809,10.0,2518.0,2517.9,12.45549378]
[1729791318332,10.0,2518.0,2517.9,11.6312934]
[1729791321340,10.0,2518.0,2517.9,10.59954393]
[1729791332262,10.10185304,2518.0,2517.9,10.59954393]
[1729791335771,10.2050531,2518.0,2517.9,10.59954393]
[1729791341062,10.2050531,2518.0,2517.9,13.27608277]
[1729791341264,1.49781998,2518.0,2517.9,14.10028315]
[1729791341498,1.49781998,2518.0,2517.9,15.88547204]
[1729791341703,1.49781998,2518.0,2517.9,16.29757224]
[1729791342066,0.68581998,2518.0,2517.9,16.29757224]
[1729791342267,0.8039,2519.2,2518.9,3.9699]
[1729791342588,0.8039,2519.2,2519.1,1.63668388]
[1729791344112,0.89115184,2519.2,2519.1,1.63668388]
[1729791344501,0.89115184,2519.2,2519.1,5.68574348]
[1729791344790,0.89115184,2519.2,2519.1,5.60635388]
[1729791346317,0.08725184,2519.2,2519.1,5.60635388]
[1729791346618,0.8003,2519.4,2519.2,3.96944]
[1729791346900,0.8003,2519.4,2519.3,1.63668388]
[1729791347706,0.88821307,2519.4,2519.3,1.63668388]
[1729791348905,0.8003,2519.2,2518.7,3.0]
[1729791349112,0.8003,2519.2,2519.1,1.63668388]
[1729791349580,4.76981,2519.2,2519.0,1.63668388]
[1729791349777,3.96967,2519.1,2518.9,1.63668388]
[1729791350019,4.76981,2519.2,2519.0,1.63668388]
[1729791350020,0.8003,2519.2,2519.0,1.63668388]
[1729791350163,0.8003,2519.2,2519.1,1.63668388]
[1729791351423,0.88804445,2519.2,2519.1,1.63668388]
[1729791351589,0.8167,2519.4,2519.1,1.63668388]
[1729791351781,0.08774445,2519.2,2519.0,3.9698]
[1729791351981,4.78596,2519.4,2519.1,1.63668388]
[1729791352203,4.78596,2519.4,2519.2,1.63668388]
[1729791352415,0.8167,2519.4,2519.3,1.63668388]
[1729791352714,0.8167,2519.4,2519.2,1.63668388]
[1729791353232,5.60509388,2519.9,2518.3,1.24512496]
[1729791353233,0.7931,2518.8,2518.3,0.8266]
[1729791353380,6.39998388,2518.8,2518.3,3.97086]
[1729791353581,4.7633,2518.8,2518.3,5.60754388]
[1729791353905,4.7633,2518.8,2518.4,3.97073]
[1729791354417,0.7931,2518.8,2518.4,3.97073]
[1729791354719,3.97,2518.9,2518.6,3.97045]
[1729791354720,0.8318,2518.9,2518.6,3.97045]
[1729791354884,0.08720038,2518.8,2518.6,3.97045]
[1729791355739,0.08720038,2518.8,2518.5,3.9706]
[1729791356431,0.08720038,2518.8,2518.4,3.97075]
[1729791356629,0.08720038,2518.8,2518.5,0.07940271]
[1729791356917,0.08720038,2518.8,2518.4,3.97067]
[1729791357735,0.08720038,2518.8,2518.4,7.94137]
[1729791357900,0.08720038,2518.8,2518.5,3.97061]
[1729791359189,0.08720038,2518.8,2518.4,3.97067]
[1729791359415,0.8147,2518.7,2518.3,3.97091]
[1729791359581,0.90179607,2518.7,2518.4,3.97076]
[1729791360096,0.90179607,2518.7,2518.4,4.0501652]
[1729791360694,0.08709607,2518.7,2518.6,3.97045]
[1729791360899,0.7997,2519.0,2518.7,3.97022]
[1729791361117,0.08721757,2518.9,2518.7,4.04956742]
[1729791361316,0.08721757,2518.9,2518.8,3.97014]
[1729791361524,0.08721757,2518.9,2518.7,0.07939592]
[1729791361733,0.08721757,2518.9,2518.8,3.97014]
[1729791362837,0.7997,2519.1,2518.8,3.97014]
[1729791363011,0.08721757,2518.9,2518.7,3.97026]
[1729791363212,0.7997,2519.1,2518.8,4.04953251]
[1729791364452,0.753,2519.3,2518.9,4.74877]
[1729791364748,0.753,2519.3,2519.0,4.0491264]
[1729791364922,0.8031,2519.5,2519.1,3.96966]
[1729791365445,0.8031,2519.5,2519.0,4.0492064]
[1729791365446,4.7722,2519.5,2519.0,4.0492064]
[1729791365749,0.08752633,2519.4,2519.0,3.96982]
[1729791366042,0.761,2519.2,2518.7,3.97021]
[1729791366212,4.73057,2519.2,2518.7,7.94038]
[1729791366414,0.08725707,2519.1,2518.7,3.97017]
[1729791366842,0.08725707,2519.1,2518.8,3.97013]
[1729791367326,0.08725707,2519.1,2518.5,0.8201]
[1729791367327,0.08725707,2519.1,2518.7,3.97022]
[1729791367751,0.08725707,2519.1,2518.8,4.04943502]
[1729791368217,4.05692707,2519.1,2518.7,3.97028]
[1729791368834,3.96983,2519.0,2518.6,0.07939502]
[1729791369037,4.05406951,2519.0,2518.6,0.55]
[1729791369415,0.08423951,2519.0,2518.7,0.0793959]
[1729791369830,0.08423951,2519.0,2518.6,4.52045]
[1729791369831,0.08423951,2519.0,2518.6,3.5998459]
[1729791370636,0.08423951,2519.0,2518.7,0.07939509]
[1729791371633,0.08423951,2519.0,2518.7,4.04968509]
[1729791372365,4.73058,2519.2,2518.7,4.04968509]
[1729791372543,0.08398772,2518.9,2518.7,4.04968509]
[1729791372744,5.600575,2519.2,2518.7,0.07939509]
[1729791372941,0.08388342,2518.8,2518.7,0.07939513]
[1729791373147,3.9698,2519.1,2518.7,0.07939513]
[1729791373347,0.08388342,2518.8,2518.7,0.07939513]
[1729791373576,3.9698,2519.1,2518.6,3.97043]
[1729791373742,0.08388342,2518.8,2518.6,7.9408]
[1729791373939,0.8114,2518.8,2518.4,3.97068]
[1729791374259,4.05407911,2518.7,2518.3,3.97091]
[1729791374465,0.08377911,2518.7,2518.3,7.94176]
[1729791374664,4.05408911,2518.7,2518.2,4.74394]
[1729791374840,4.86281551,2518.7,2518.2,4.74394]
[1729791375038,0.08093725,2518.6,2518.2,4.74394]
[1729791375248,0.08093725,2518.6,2518.3,4.0503275]
[1729791375584,3.97041,2518.7,2518.2,3.97104]
[1729791375788,0.08038502,2518.5,2518.3,3.97092]
[1729791375942,0.8114,2518.6,2518.3,3.97092]
[1729791376147,0.08025438,2518.4,2518.3,3.97092]
[1729791376448,4.78188,2518.6,2518.2,3.97106]
[1729791376646,4.78188,2518.6,2518.3,4.05033921]
[1729791376647,0.0807286,2518.4,2518.3,4.05033921]
[1729791376847,0.7914,2518.8,2518.4,3.97076]
[1729791377059,5.634694,2518.8,2518.4,5.60641869]
[1729791377548,4.76131,2519.0,2518.6,3.97038]
[1729791377768,4.76131,2519.0,2518.6,5.68543767]
[1729791377962,4.76131,2519.0,2518.6,4.04977997]
[1729791378292,4.76131,2519.0,2518.7,5.60595869]
[1729791378293,0.7914,2519.0,2518.7,5.60595869]
[1729791378618,4.76092,2519.2,2518.7,5.60585869]
[1729791378912,0.63965787,2519.1,2518.7,9.65542583]
[1729791379108,0.7914,2519.2,2518.9,5.60553869]
[1729791379276,0.7914,2519.2,2518.9,1.71504859]
[1729791379475,0.7914,2519.2,2518.9,4.0493399]
[1729791379679,0.7914,2519.2,2518.9,5.68499859]
[1729791380208,0.0813459,2519.1,2518.9,0.0793899]
[1729791382172,0.0813459,2519.1,2519.0,4.73682]
[1729791382372,0.7812,2519.5,2519.1,3.96954]
[1729791383007,0.7812,2519.5,2519.2,3.96944]
[1729791383904,0.08174413,2519.4,2519.2,3.96944]
[1729791384902,0.08174413,2519.4,2519.2,7.93889]
[1729791385417,0.08174413,2519.4,2519.2,3.96943]
[1729791386026,0.08174413,2519.4,2519.3,4.0487295]
[1729791386223,0.08174413,2519.4,2519.3,3.96935]
[1729791386623,0.08174413,2519.4,2519.3,4.04872687]
[1729791387238,0.08174413,2519.4,2519.3,4.83542687]
[1729791387415,0.15788706,2519.4,2519.3,4.83542687]
[1729791388216,0.15788706,2519.4,2519.3,5.81255362]
[1729791391135,0.13284706,2519.4,2519.3,5.81255362]
[1729791391337,0.07530826,2519.4,2519.3,5.81255362]
[1729791391555,4.77292,2519.9,2519.4,3.96918]
[1729791391749,4.77292,2519.9,2519.5,0.07937185]
[1729791391963,4.77292,2519.9,2519.5,4.04841185]
[1729791394245,4.77292,2519.9,2519.5,4.04832185]
[1729791394770,4.77292,2519.9,2519.6,3.96887]
[1729791394771,0.07572522,2519.8,2519.6,3.96887]
[1729791395151,0.07572522,2519.8,2519.3,0.7867]
[1729791395481,0.07572522,2519.8,2519.6,3.96878]
[1729791395775,0.806,2519.5,2519.2,3.96949]
[1729791396378,0.07541743,2519.4,2519.2,3.96949]
[1729791397291,0.07541743,2519.4,2519.2,3.96943]
[1729791398463,0.07541743,2519.4,2519.3,4.04872795]
[1729791398668,0.8224,2519.7,2519.3,0.80181579]
[1729791398876,0.07554403,2519.4,2519.3,3.96935]
[1729791399082,4.79118,2519.7,2519.3,3.96935]
[1729791399383,4.79118,2519.7,2519.2,6.96942]
[1729791399384,0.07554403,2519.4,2519.2,6.96942]
[1729791399585,4.79118,2519.7,2519.2,6.96942]
[1729791399889,0.07543978,2519.3,2519.2,6.96942]
[1729791400069,8.75999,2519.7,2519.2,6.96942]
[1729791400278,8.75999,2519.7,2519.2,3.0]
[1729791400279,0.07543978,2519.3,2519.2,3.0]
[1729791400455,3.96904,2519.5,2519.2,3.0]
[1729791400654,0.07541569,2519.3,2519.1,3.96963]
[1729791400850,0.8224,2519.3,2519.1,7.93921]
[1729791401054,0.07531143,2519.2,2519.1,3.96958]
[1729791401351,0.8224,2519.3,2519.1,3.96958]
[1729791401578,0.07531143,2519.2,2519.1,3.96958]
[1729791401754,0.8224,2519.3,2519.1,3.96958]
[1729791402068,0.8224,2519.3,2519.0,0.8069]
[1729791402069,0.8224,2519.3,2519.2,3.96951]
[1729791402252,0.8224,2519.5,2519.2,3.96951]
[1729791403849,0.8224,2519.5,2519.2,3.96945]
[1729791404067,3.96874,2519.7,2519.2,6.08154394]
[1729791404266,3.96874,2519.7,2519.2,1.63445894]
[1729791404498,3.96874,2519.7,2519.2,5.60396894]
[1729791405107,3.96874,2519.7,2519.3,4.83356987]
[1729791405701,0.07577878,2519.6,2519.3,4.83356987]
[1729791405906,0.07577878,2519.6,2519.5,3.96904]
[1729791406105,0.07577878,2519.6,2519.5,4.04841141]
[1729791406408,3.9685,2519.9,2519.5,4.04841141]
[1729791406697,0.07575332,2519.6,2519.5,4.04841141]
[1729791406902,3.9685,2519.9,2519.5,4.04841141]
[1729791407090,0.07592799,2519.6,2519.5,4.04841141]
[1729791407288,26.41782894,2520.0,2519.6,3.96886]
[1729791408278,20.815,2520.0,2519.6,3.96875]
[1729791408603,20.0,2520.0,2519.7,4.04806672]
[1729791408766,20.0,2520.0,2519.7,0.07936672]
[1729791408962,20.0,2520.0,2519.7,4.04806672]
[1729791409166,20.0,2520.0,2519.8,0.7855]
[1729791409167,0.07392224,2519.9,2519.8,0.7855]
[1729791409399,0.07392224,2519.9,2519.8,7.754]
[1729791409607,0.07392224,2519.9,2519.8,8.304]
[1729791409771,19.95,2520.0,2519.9,8.60286894]
[1729791410199,19.95,2520.0,2519.9,6.96841]
[1729791410376,19.95,2520.0,2519.9,10.05823609]
[1729791411209,19.95,2520.0,2519.9,8.42377715]
[1729791411369,19.95,2520.0,2519.9,10.05823609]
[1729791412707,19.95,2520.0,2519.9,8.42377715]
[1729791413004,20.02190959,2520.0,2519.9,8.42377715]
[1729791415706,20.02190959,2520.0,2519.9,10.05823609]
[1729791416302,20.02190959,2520.0,2519.9,8.42377715]
[1729791417087,20.02190959,2520.0,2519.8,3.96854]
[1729791417423,20.02190959,2520.0,2519.9,3.96841]
[1729791417784,20.02190959,2520.0,2519.7,1.63445894]
[1729791417998,20.02190959,2520.0,2519.8,7.937]
[1729791418483,20.02190959,2520.0,2519.8,3.9685]
[1729791418688,20.02190959,2520.0,2519.8,7.93699]
[1729791418992,20.02190959,2520.0,2519.8,3.96849]
[1729791420298,20.02190959,2520.0,2519.8,7.93693]
[1729791421122,20.02190959,2520.0,2519.8,3.96844]
[1729791421837,20.02190959,2520.0,2519.8,7.93693]
[1729791422191,20.02190959,2520.0,2519.8,3.96844]
[1729791422393,20.02190959,2520.0,2519.9,6.42186894]
[1729791422593,20.02190959,2520.0,2519.9,6.50122856]
[1729791423497,20.02190959,2520.0,2519.9,6.42186894]
[1729791423715,20.02190959,2520.0,2519.9,4.78741]
[1729791425460,20.02190959,2520.0,2519.9,3.96841]
[1729791425958,20.02190959,2520.0,2519.9,7.43519983]
[1729791426449,20.02190959,2520.0,2519.9,7.51455849]
[1729791427041,20.02190959,2520.0,2519.9,7.98519983]
[1729791427213,20.02190959,2520.0,2519.9,6.35074089]
[1729791427413,20.02190959,2520.0,2519.9,5.80074089]
[1729791427925,20.02190959,2520.0,2519.7,3.9686]
[1729791428113,20.02190959,2520.0,2519.8,4.04786343]
[1729791429043,20.02190959,2520.0,2519.8,3.9685]
[1729791433811,20.02190959,2520.0,2519.7,3.96869]
[1729791434012,20.02190959,2520.0,2519.8,3.96852]
[1729791435012,20.02190959,2520.0,2519.7,3.96864]
[1729791435408,20.02190959,2520.0,2519.8,3.96856]
[1729791437812,20.02190959,2520.0,2519.6,3.96873]
[1729791438017,0.8015,2519.9,2519.6,7.93754]
[1729791438261,0.0719813,2519.8,2519.7,3.9687]
[1729791440219,0.0719813,2519.8,2519.7,3.96872]
[1729791441215,0.07168882,2519.8,2519.6,3.96882]
[1729791441421,3.96842,2519.9,2519.5,6.96895]
[1729791441629,0.07168882,2519.8,2519.5,6.96895]
[1729791442049,0.828,2519.7,2519.5,6.96895]
[1729791442237,0.07148039,2519.6,2519.5,6.96895]
[1729791443279,0.07148039,2519.6,2519.5,7.04832262]
[1729791443481,0.07148039,2519.6,2519.5,3.96895]
[1729791444345,0.07148039,2519.6,2519.5,4.0483228]
[1729791444575,0.07148039,2519.6,2519.5,3.96895]
[1729791445546,0.07148039,2519.6,2519.5,4.04832299]
[1729791445860,0.7954,2519.9,2519.6,3.96887]
[1729791446041,0.7954,2519.9,2519.4,1.63445894]
[1729791446236,0.7954,2519.9,2519.5,8.0172923]
[1729791446480,0.7954,2519.9,2519.6,3.96875]
[1729791446642,0.7954,2519.9,2519.8,3.96856]
[1729791446844,19.95,2520.0,2519.8,3.96856]
[1729791447043,19.95,2520.0,2519.9,3.96841]
[1729791447557,19.95,2520.0,2519.8,3.96854]
[1729791447737,19.95,2520.0,2519.7,0.7935]
[1729791447738,19.95,2520.0,2519.7,4.76207]
[1729791447935,0.8045,2519.9,2519.4,3.96908]
[1729791448158,4.86237597,2519.9,2519.5,3.96898]
[1729791448364,0.07163672,2519.8,2519.5,3.96898]
[1729791448564,0.07163672,2519.8,2519.5,4.04835171]
[1729791448752,0.07163672,2519.8,2519.6,3.96886]
[1729791448959,0.07163672,2519.8,2519.6,3.96879]
[1729791449887,0.07163672,2519.8,2519.6,7.93755]
[1729791450173,0.07163672,2519.8,2519.7,4.04808789]
[1729791450695,19.95,2520.0,2519.7,4.04808789]
[1729791450696,19.95,2520.0,2519.9,4.74101]
[1729791450975,19.95,2520.0,2519.9,9.4020364]
[1729791451280,19.95,2520.0,2519.9,9.32267808]
[1729791451440,19.95,2520.0,2519.9,12.61159596]
[1729791451644,19.95,2520.0,2519.9,16.66171898]
[1729791451839,19.95,2520.0,2519.9,18.45416066]
[1729791452243,19.95,2520.0,2519.9,16.42273293]
[1729791452474,19.95,2520.0,2519.9,18.50169647]
[1729791455295,19.95,2520.0,2519.9,16.42273293]
[1729791456106,18.28001998,2520.0,2519.9,18.50169647]
[1729791456320,13.59572994,2520.0,2519.9,18.49940721]
[1729791456612,13.59572994,2520.0,2519.9,18.14035678]
[1729791456613,4.87920994,2520.0,2519.9,18.14035678]
[1729791456904,4.87920994,2520.0,2519.9,20.27139382]
[1729791456905,0.16229052,2520.0,2519.9,20.27139382]
[1729791457216,0.1244128,2520.5,2520.4,8.29462]
[1729791457367,0.1244128,2520.5,2520.4,15.26341789]
[1729791458201,0.1244128,2520.5,2520.4,13.47264427]
[1729791458414,0.1244128,2520.5,2520.4,13.47031792]
[1729791458783,0.1244128,2520.5,2520.4,15.26808743]
[1729791459181,0.1244128,2520.5,2520.4,15.26697298]
[1729791460686,0.1244128,2520.5,2520.4,12.65041542]
[1729791460880,0.1244128,2520.5,2520.4,15.26577551]
[1729791461080,0.1244128,2520.5,2520.4,12.65041542]
[1729791461291,0.1244128,2520.5,2520.4,13.47927391]
[1729791461612,0.1244128,2520.5,2520.2,0.82885849]
[1729791461778,0.7866,2520.4,2520.2,3.96786]
[1729791461976,0.06382059,2520.4,2520.3,0.07934508]
[1729791462317,0.06382059,2520.4,2520.3,4.04712508]
[1729791462472,0.06382059,2520.4,2520.3,4.76927851]
[1729791463622,0.06382059,2520.4,2520.1,3.968]
[1729791463916,0.06382059,2520.4,2520.0,6.96813]
[1729791463917,0.06382059,2520.4,2520.3,0.07934111]
[1729791464424,0.06382059,2520.4,2520.2,0.07934592]
[1729791464627,0.06382059,2520.4,2520.2,8.01500592]
[1729791464794,0.06382059,2520.4,2520.3,4.0471261]
[1729791466030,0.06382059,2520.4,2520.3,4.84862071]
[1729791466399,0.1244128,2520.5,2520.4,4.51762]
[1729791466607,0.1244128,2520.5,2520.4,10.90339044]
[1729791466796,0.1244128,2520.5,2520.4,10.83407369]
[1729791469210,0.1244128,2520.5,2520.4,11.66487369]
[1729791469379,0.1244128,2520.5,2520.4,9.33995313]
[1729791471819,0.1244128,2520.5,2520.4,9.34995313]
[1729791472534,0.1244128,2520.5,2520.4,12.66640682]
[1729791472693,0.1244128,2520.5,2520.4,12.65640682]
[1729791472899,0.1244128,2520.5,2520.4,12.66640682]
[1729791473341,0.1244128,2520.5,2520.4,12.65640682]
[1729791473825,0.1244128,2520.5,2520.4,12.66640682]
[1729791479521,0.0744128,2520.5,2520.4,12.66640682]